bitfinex/quotes_ETHUSD_20241104
["timestamp","ask_amount","ask_price","bid_price","bid_amount"]
[1730732074950,4.1618126,2450.8,2450.4,0.83055362]
[1730732075149,4.08073,2450.6,2450.5,0.83055362]
[1730732075360,4.1621926,2450.6,2450.5,0.82986116]
[1730732075597,4.1621926,2450.6,2450.5,0.82981329]
[1730732075598,4.63073,2450.6,2450.5,0.82981329]
[1730732075752,4.08103,2450.4,2450.2,0.38393016]
[1730732076087,4.08103,2450.4,2450.3,0.82924944]
[1730732077185,0.55,2450.6,2450.3,0.82924944]
[1730732077186,4.08065,2450.6,2450.3,0.82924944]
[1730732077414,4.08081,2450.5,2450.4,0.82924944]
[1730732077866,8.16136,2450.6,2450.4,0.82924944]
[1730732078072,8.16136,2450.6,2450.2,0.38393016]
[1730732078073,8.16136,2450.6,2450.5,0.82924944]
[1730732078403,8.16136,2450.6,2450.5,0.3685453]
[1730732078404,4.08064,2450.6,2450.5,0.3685453]
[1730732078812,4.08064,2450.6,2450.5,0.82924944]
[1730732078983,4.08064,2450.6,2450.5,1.0593614]
[1730732079176,4.08064,2450.6,2450.1,0.7769]
[1730732079381,4.08064,2450.6,2450.2,1.44207174]
[1730732079601,4.08084,2450.5,2450.3,1.05851052]
[1730732079916,4.08084,2450.5,2450.4,1.05851052]
[1730732080331,7.08003,2451.0,2450.4,1.05851052]
[1730732080501,7.08003,2451.0,2450.2,0.38356122]
[1730732080502,4.0807,2450.6,2450.5,1.05851052]
[1730732080830,4.0807,2450.6,2450.2,0.08161916]
[1730732081193,8.16143,2450.6,2450.2,0.08161916]
[1730732081549,4.0807,2450.6,2450.2,0.08161916]
[1730732081879,4.0807,2450.6,2450.3,1.44219209]
[1730732082119,4.0807,2450.6,2450.4,1.05859886]
[1730732082294,4.0807,2450.6,2450.5,1.05859886]
[1730732083106,4.0807,2450.6,2450.2,0.08161916]
[1730732083417,3.47718568,2451.1,2450.4,0.8093]
[1730732083590,4.08047,2450.7,2450.5,1.05842462]
[1730732083923,4.08047,2450.7,2450.6,1.05842462]
[1730732084123,4.1619326,2450.7,2450.6,1.05842462]
[1730732084280,5.5076326,2450.7,2450.6,0.5982224]
[1730732084479,13.5176326,2450.7,2450.6,8.62e-06]
[1730732084698,13.5176326,2450.7,2449.7,0.0614935]
[1730732084699,4.08196,2449.8,2449.7,0.0614935]
[1730732084898,4.08196,2449.8,2449.7,1.2736841]
[1730732085418,4.08196,2449.8,2449.7,0.89013641]
[1730732086088,4.9667226,2449.8,2449.7,0.89013641]
[1730732086293,4.08196,2449.8,2449.7,0.0614935]
[1730732086488,4.1634226,2449.8,2449.7,0.88944103]
[1730732087030,4.08196,2449.8,2449.7,0.88944103]
[1730732087199,4.08189,2449.9,2449.7,0.88944103]
[1730732087386,4.08189,2449.9,2449.8,0.82794753]
[1730732087581,5.5297076,2449.9,2449.8,0.82794753]
[1730732087783,5.5297076,2449.9,2449.7,0.0614935]
[1730732087784,7.63196,2449.8,2449.7,0.0614935]
[1730732088015,7.63196,2449.8,2449.7,0.42899224]
[1730732088220,7.63196,2449.8,2449.7,0.42881034]
[1730732088221,4.63196,2449.8,2449.7,0.42881034]
[1730732089001,4.7134226,2449.8,2449.7,0.42881034]
[1730732089199,4.08196,2449.8,2449.7,0.42881034]
[1730732089412,4.1634226,2449.8,2449.7,0.88795895]
[1730732089594,4.08196,2449.8,2449.7,0.88795895]
[1730732089987,4.1634226,2449.8,2449.7,0.88795895]
[1730732090696,4.08196,2449.8,2449.7,0.88795895]
[1730732091051,4.08148,2450.1,2449.7,0.88795895]
[1730732091052,4.08175,2450.0,2449.7,0.88795895]
[1730732091338,4.08175,2450.0,2449.8,0.82646545]
[1730732091484,4.08175,2450.0,2449.9,0.82646545]
[1730732091485,4.90405,2450.0,2449.9,0.82646545]
[1730732091688,4.1632126,2450.0,2449.9,0.82646545]
[1730732092193,4.08175,2450.0,2449.9,0.82646545]
[1730732093017,4.1632126,2450.0,2449.9,0.82646545]
[1730732093243,4.08191,2449.9,2449.7,0.4445909]
[1730732093557,4.08191,2449.9,2449.7,0.0614935]
[1730732093558,4.08196,2449.8,2449.7,0.0614935]
[1730732093857,4.08166,2450.0,2449.7,1.27189327]
[1730732094159,4.08166,2450.0,2449.8,1.21039019]
[1730732094330,4.08166,2450.0,2449.9,0.82733974]
[1730732094840,4.1631226,2450.0,2449.9,0.82733974]
[1730732095157,4.1631226,2450.0,2449.9,1.21039019]
[1730732095452,5.59258386,2450.0,2449.9,0.82733974]
[1730732095652,5.59258386,2450.0,2449.9,1.21039019]
[1730732096257,5.59258386,2450.0,2449.9,0.82733974]
[1730732096627,5.59258386,2450.0,2449.7,0.0614935]
[1730732096628,0.6314626,2450.0,2449.7,0.0614935]
[1730732096831,4.7130926,2450.0,2449.8,1.0587758]
[1730732097032,4.08196,2449.8,2449.7,0.0614935]
[1730732097228,4.08196,2449.8,2449.7,1.12094278]
[1730732097626,4.08165,2450.0,2449.7,1.12094278]
[1730732097960,1.312647,2450.3,2449.8,1.88224928]
[1730732097961,4.08129,2450.2,2449.8,1.88224928]
[1730732098166,4.08129,2450.2,2449.9,1.05944928]
[1730732098347,4.08148,2450.1,2450.0,1.05944928]
[1730732098843,4.1629426,2450.1,2450.0,1.05944928]
[1730732099952,4.08177,2450.0,2449.7,0.0614935]
[1730732100280,4.1629426,2450.1,2449.8,1.06016861]
[1730732100281,4.0818,2449.9,2449.8,1.06016861]
[1730732100745,4.0818,2449.9,2449.7,0.0614935]
[1730732100942,4.08165,2450.0,2449.8,1.06044371]
[1730732101145,4.1631126,2450.0,2449.9,1.06044371]
[1730732101351,4.08165,2450.0,2449.9,1.06044371]
[1730732101664,4.1631126,2450.0,2449.9,1.06044371]
[1730732101856,4.08165,2450.0,2449.9,1.06044371]
[1730732102256,4.08148,2450.1,2449.9,1.06044371]
[1730732102472,4.08148,2450.1,2450.0,1.06110433]
[1730732102990,4.1629426,2450.1,2450.0,1.06110433]
[1730732103443,4.08148,2450.1,2450.0,1.06110433]
[1730732104084,8.16275,2450.2,2450.0,1.06110433]
[1730732104280,8.16275,2450.2,2450.1,1.06110433]
[1730732105258,4.08133,2450.2,2450.1,1.06110433]
[1730732105458,4.08109,2450.4,2450.1,0.59992202]
[1730732105693,4.08109,2450.4,2450.2,1.0614318]
[1730732106004,4.08188,2449.9,2449.7,0.0614935]
[1730732106206,4.08188,2449.9,2449.8,0.46157755]
[1730732106496,4.08133,2450.2,2449.8,1.06164561]
[1730732106700,4.08097,2450.4,2450.1,0.7577]
[1730732106858,4.08122,2450.3,2450.2,1.06164561]
[1730732107067,4.08103,2450.4,2450.2,1.06164561]
[1730732107418,4.08098,2450.4,2450.3,1.44638357]
[1730732108106,4.08017,2450.9,2450.4,4.86765]
[1730732108265,4.92235095,2451.1,2450.7,0.38606118]
[1730732108466,4.08013,2450.9,2450.8,1.06528593]
[1730732108911,0.84247095,2451.1,2450.8,1.06528593]
[1730732109116,4.08013,2450.9,2450.4,4.86763]
[1730732109282,4.08013,2450.9,2450.8,0.38593214]
[1730732109481,4.08013,2450.9,2450.8,1.45097107]
[1730732110105,4.1615926,2450.9,2450.8,1.45097107]
[1730732110402,5.5349926,2450.9,2450.8,1.06503893]
[1730732110602,5.5349926,2450.9,2450.8,0.60196093]
[1730732110804,6.58073895,2450.9,2450.8,0.60196093]
[1730732111436,5.12587635,2450.9,2450.8,0.60196093]
[1730732111625,4.1615926,2450.9,2450.8,1.06504519]
[1730732111797,4.08013,2450.9,2450.8,1.06504519]
[1730732112002,4.1615926,2450.9,2450.8,1.06504519]
[1730732112429,4.1615926,2450.9,2450.6,0.7561]
[1730732112598,4.66199895,2450.9,2450.7,1.06496323]
[1730732112799,4.8313,2450.8,2450.6,0.38589914]
[1730732112995,4.08079,2450.5,2450.3,0.763]
[1730732113207,4.08079,2450.5,2450.4,1.45097294]
[1730732113542,4.08079,2450.5,2450.4,1.06504439]
[1730732113695,5.5283956,2450.5,2450.4,1.06504439]
[1730732113902,6.2790956,2450.5,2450.4,0.60196401]
[1730732114302,6.2790956,2450.5,2450.4,0.60220061]
[1730732114537,6.2790956,2450.5,2450.4,0.2315177]
[1730732115633,2.1983056,2450.5,2449.9,0.42629875]
[1730732115835,4.08163,2450.0,2449.9,0.42629875]
[1730732116042,4.08163,2450.0,2449.9,1.49209107]
[1730732116217,4.1630926,2450.0,2449.9,1.49209107]
[1730732116416,4.1630926,2450.0,2449.9,1.06579232]
[1730732116619,4.1630926,2450.0,2449.9,1.06576714]
[1730732116917,5.61857186,2450.0,2449.9,0.60238785]
[1730732117230,5.61857186,2450.0,2449.9,0.60233262]
[1730732117911,8.61857186,2450.0,2449.9,0.23168227]
[1730732118127,9.36980926,2450.0,2449.9,0.23168227]
[1730732118340,4.08196,2449.8,2449.7,0.0614935]
[1730732118639,6.46678253,2449.8,2449.7,0.6636859]
[1730732118861,6.46678253,2449.8,2449.7,0.66369329]
[1730732119040,6.46678253,2449.8,2449.7,0.66369026]
[1730732119368,7.22488253,2449.8,2449.7,0.29310071]
[1730732121326,4.1634226,2449.8,2449.7,0.29310071]
[1730732121533,4.1634226,2449.8,2449.7,0.66345645]
[1730732121932,4.1634226,2449.8,2449.7,0.66346039]
[1730732121933,4.08196,2449.8,2449.7,0.66346039]
[1730732122496,4.08196,2449.8,2449.7,0.0614935]
[1730732122637,4.1634226,2449.8,2449.7,0.66326371]
[1730732122831,4.1634226,2449.8,2449.7,0.0614935]
[1730732123063,4.1634226,2449.8,2449.7,0.29296583]
[1730732123266,4.1634226,2449.8,2449.7,0.66333955]
[1730732123481,4.1634226,2449.8,2449.7,0.29296583]
[1730732123684,1.60232308,2450.2,2449.7,0.66327831]
[1730732123865,4.08182,2449.9,2449.8,0.60178084]
[1730732124173,4.7132826,2449.9,2449.8,0.23147233]
[1730732124392,4.7132826,2449.9,2449.7,0.0614935]
[1730732124393,4.08196,2449.8,2449.7,0.0614935]
[1730732124536,4.1634226,2449.8,2449.7,0.29292869]
[1730732125550,5.4691226,2449.8,2449.7,0.29292869]
[1730732125738,7.30655659,2449.8,2449.7,0.0614935]
[1730732125953,7.30655659,2449.8,2449.7,0.29289601]
[1730732126150,7.30655659,2449.8,2449.7,0.0614935]
[1730732126486,4.08196,2449.8,2449.7,0.0614935]
[1730732126833,4.08196,2449.8,2449.7,0.29288237]
[1730732127034,4.1634226,2449.8,2449.7,0.0614935]
[1730732127276,4.08196,2449.8,2449.7,0.0614935]
[1730732127433,4.08196,2449.8,2449.7,0.29287389]
[1730732128029,4.92844308,2449.9,2449.7,0.29287389]
[1730732128030,4.08182,2449.9,2449.7,0.29287389]
[1730732128272,4.08182,2449.9,2449.7,0.0614935]
[1730732128509,4.08182,2449.9,2449.8,0.2313566]
[1730732128793,4.08182,2449.9,2449.7,0.0614935]
[1730732128794,5.41116,2449.8,2449.7,0.0614935]
[1730732128943,6.68258136,2449.8,2449.7,0.0614935]
[1730732129145,5.41116,2449.8,2449.7,0.0614935]
[1730732129480,9.14785484,2449.8,2449.7,0.0614935]
[1730732130478,7.45460367,2449.8,2449.7,0.0614935]
[1730732130660,9.22931744,2449.8,2449.7,0.0614935]
[1730732130986,10.46460367,2449.8,2449.7,3.5e-06]
[1730732131161,13.00460534,2449.8,2449.7,3.5e-06]
[1730732131871,10.46460367,2449.8,2449.7,3.5e-06]
[1730732132663,12.57368625,2449.8,2449.7,3.5e-06]
[1730732132846,10.45460367,2449.8,2449.7,3.5e-06]
[1730732133270,12.57375966,2449.8,2449.7,3.5e-06]
[1730732133491,12.14999964,2449.8,2449.7,3.5e-06]
[1730732133637,4.08196,2449.8,2449.7,3.5e-06]
[1730732133841,4.92966286,2449.8,2449.7,3.5e-06]
[1730732134043,4.08196,2449.8,2449.7,3.5e-06]
[1730732134365,4.1634226,2449.8,2449.7,3.5e-06]
[1730732134890,4.08196,2449.8,2449.7,3.5e-06]
[1730732135889,5.01112546,2449.8,2449.7,3.5e-06]
[1730732136047,4.1634226,2449.8,2449.7,3.5e-06]
[1730732136245,5.01112546,2449.8,2449.7,3.5e-06]
[1730732136449,4.1634226,2449.8,2449.7,3.5e-06]
[1730732137481,4.08196,2449.8,2449.7,0.23119461]
[1730732140586,4.08196,2449.8,2449.7,0.23152029]
[1730732142172,4.08196,2449.8,2449.7,0.60279291]
[1730732142343,4.1634226,2449.8,2449.7,0.60279291]
[1730732143581,4.08196,2449.8,2449.7,0.60279291]
[1730732143787,4.92966286,2449.8,2449.7,0.60279291]
[1730732143992,4.08196,2449.8,2449.7,0.60279291]
[1730732144149,4.08196,2449.8,2449.7,3.5e-06]
[1730732144354,4.92966286,2449.8,2449.7,0.60394492]
[1730732145165,4.08196,2449.8,2449.7,0.60394492]
[1730732145486,4.92966286,2449.8,2449.7,0.60394492]
[1730732145684,4.08196,2449.8,2449.7,0.60394492]
[1730732145889,4.92952286,2449.9,2449.7,0.60394492]
[1730732146048,4.92952286,2449.9,2449.8,1.38344142]
[1730732146467,4.92952286,2449.9,2449.8,0.60394142]
[1730732146670,0.84770286,2450.0,2449.8,5.46546162]
[1730732146877,0.84770286,2450.2,2450.0,4.90419]
[1730732147092,4.92901286,2450.2,2450.1,1.0687327]
[1730732147259,4.92901286,2450.2,2450.1,0.60407162]
[1730732147593,5.01047546,2450.2,2450.1,0.60407162]
[1730732147775,4.08167,2450.0,2449.7,0.8226035]
[1730732148095,4.08196,2449.8,2449.7,0.8226035]
[1730732148249,4.08196,2449.8,2449.7,1.42638619]
[1730732148588,4.08196,2449.8,2449.7,1.89087325]
[1730732148800,4.08179,2449.9,2449.7,1.89087325]
[1730732148950,4.08196,2449.8,2449.7,0.8226035]
[1730732149144,4.08196,2449.8,2449.7,1.89086915]
[1730732149344,4.08196,2449.8,2449.7,1.06826915]
[1730732150090,4.1634226,2449.8,2449.7,0.60378822]
[1730732150314,4.1634226,2449.8,2449.7,1.06831017]
[1730732150593,4.1634226,2449.8,2449.7,1.0683093]
[1730732150594,4.08196,2449.8,2449.7,1.0683093]
[1730732150951,4.93017961,2449.8,2449.7,0.60378822]
[1730732151284,4.08196,2449.8,2449.7,0.60378822]
[1730732151489,4.08196,2449.8,2449.7,1.06830791]
[1730732151674,4.1634226,2449.8,2449.7,0.60378822]
[1730732151861,6.59813227,2449.8,2449.7,0.23222147]
[1730732152067,5.74991266,2449.8,2449.7,0.23222147]
[1730732152262,7.44514445,2449.8,2449.7,0.23222147]
[1730732152887,9.56411266,2449.8,2449.7,3.5e-06]
[1730732153086,11.60416556,2449.8,2449.7,3.5e-06]
[1730732153392,11.6042979,2449.8,2449.7,3.5e-06]
[1730732153896,9.48265006,2449.8,2449.7,3.5e-06]
[1730732154503,7.36571263,2449.8,2449.7,3.5e-06]
[1730732154674,6.28500803,2449.8,2449.7,0.23220963]
[1730732154874,5.43658809,2449.8,2449.7,0.23220963]
[1730732155074,5.43658809,2449.8,2449.7,0.23219765]
[1730732155300,6.67607658,2449.8,2449.7,0.23219765]
[1730732155591,6.65598222,2449.8,2449.7,0.23219765]
[1730732156103,8.47904159,2449.8,2449.7,0.23219765]
[1730732156263,7.12451962,2449.8,2449.7,0.23219765]
[1730732156479,8.9035362,2449.8,2449.7,0.23219765]
[1730732156704,9.24605819,2449.8,2449.7,3.5e-06]
[1730732157321,7.12451962,2449.8,2449.7,3.5e-06]
[1730732157522,7.20598222,2449.8,2449.7,3.5e-06]
[1730732157705,9.32707359,2449.8,2449.7,3.5e-06]
[1730732157907,9.2456196,2449.8,2449.7,3.5e-06]
[1730732158121,7.12451962,2449.8,2449.7,3.5e-06]
[1730732158300,9.32704046,2449.8,2449.7,3.5e-06]
[1730732158633,9.24557786,2449.8,2449.7,3.5e-06]
[1730732158865,9.24541474,2449.8,2449.7,3.5e-06]
[1730732159283,9.24537789,2449.8,2449.7,3.5e-06]
[1730732159482,9.24549346,2449.8,2449.7,3.5e-06]
[1730732159831,9.24535288,2449.8,2449.7,3.5e-06]
[1730732159988,9.24565582,2449.8,2449.7,3.5e-06]
[1730732160635,7.12451962,2449.8,2449.7,3.5e-06]
[1730732160785,9.32717697,2449.8,2449.7,3.5e-06]
[1730732160987,7.12451962,2449.8,2449.7,3.5e-06]
[1730732161220,7.20598222,2449.8,2449.7,3.5e-06]
[1730732161425,8.51216139,2449.8,2449.7,3.5e-06]
[1730732161629,8.00666296,2449.8,2449.7,3.5e-06]
[1730732161927,4.93068681,2449.8,2449.7,1.4001769]
[1730732162145,4.93067384,2449.8,2449.7,1.4001769]
[1730732162428,5.43629813,2449.9,2449.7,1.40022641]
[1730732162429,5.35483553,2449.9,2449.7,1.40022641]
[1730732162632,0.84877931,2449.8,2449.7,0.7965035]
[1730732162845,0.84877931,2449.8,2449.7,5.48234137]
[1730732163135,0.84877931,2450.2,2450.0,0.8257]
[1730732163430,0.84877931,2450.3,2450.2,0.8257]
[1730732163638,4.92984931,2450.4,2450.2,1.42940787]
[1730732163856,0.84877931,2450.4,2450.3,0.60370787]
[1730732164241,4.92958931,2450.5,2450.3,0.60370787]
[1730732164576,4.08081,2450.5,2450.4,0.60370787]
[1730732164794,4.08113,2450.3,2450.2,0.8257]
[1730732165080,4.08113,2450.3,2450.2,1.42901523]
[1730732165292,4.08113,2450.3,2450.2,0.60331523]
[1730732165293,5.19095891,2450.3,2450.2,0.60331523]
[1730732165489,7.01397444,2450.3,2450.2,0.60331523]
[1730732165842,15.12114646,2450.3,2450.2,0.60331523]
[1730732166060,15.47430688,2450.3,2450.2,5.23e-06]
[1730732166263,13.35244052,2450.3,2450.2,5.23e-06]
[1730732166654,15.89868015,2450.3,2450.2,5.23e-06]
[1730732166860,4.63196,2449.8,2449.7,3.5e-06]
[1730732167067,5.48025859,2449.8,2449.7,3.5e-06]
[1730732167278,5.98583709,2449.8,2449.7,3.5e-06]
[1730732167581,7.10410738,2449.8,2449.7,3.5e-06]
[1730732167803,7.10415077,2449.8,2449.7,3.5e-06]
[1730732168167,5.43581584,2449.8,2449.7,3.5e-06]
[1730732168366,4.1634226,2449.8,2449.7,3.5e-06]
[1730732168568,5.43581921,2449.8,2449.7,3.5e-06]
[1730732169466,5.35440989,2449.8,2449.7,3.5e-06]
[1730732170006,5.35440989,2449.8,2449.7,0.8287035]
[1730732170411,4.1634226,2449.8,2449.7,3.5e-06]
[1730732170584,6.64210576,2449.8,2449.7,3.5e-06]
[1730732170985,6.64207071,2449.8,2449.7,3.5e-06]
[1730732171365,7.19207071,2449.8,2449.7,3.5e-06]
[1730732171566,7.61621589,2449.8,2449.7,3.5e-06]
[1730732172071,7.61599026,2449.8,2449.7,3.5e-06]
[1730732172697,7.61604291,2449.8,2449.7,3.5e-06]
[1730732172914,7.61596988,2449.8,2449.7,3.5e-06]
[1730732173216,7.61607051,2449.8,2449.7,3.5e-06]
[1730732173371,6.40982987,2449.8,2449.7,3.5e-06]
[1730732173939,5.85982987,2449.8,2449.7,3.5e-06]
[1730732174082,5.43553871,2449.8,2449.7,3.5e-06]
[1730732174285,4.1634226,2449.8,2449.7,3.5e-06]
[1730732174549,5.85982987,2449.8,2449.7,3.5e-06]
[1730732174805,8.83004159,2449.8,2449.7,3.5e-06]
[1730732174977,8.74857899,2449.8,2449.7,3.5e-06]
[1730732176001,6.6284399,2449.8,2449.7,3.5e-06]
[1730732176197,5.35426972,2449.8,2449.7,3.5e-06]
[1730732176397,4.93020222,2449.8,2449.7,3.5e-06]
[1730732176600,4.08196,2449.8,2449.7,3.5e-06]
[1730732177005,4.1634226,2449.8,2449.7,3.5e-06]
[1730732177203,5.43573232,2449.8,2449.7,3.5e-06]
[1730732177410,4.1634226,2449.8,2449.7,3.5e-06]
[1730732177573,5.43573232,2449.8,2449.7,3.5e-06]
[1730732177775,4.93041785,2449.8,2449.7,3.5e-06]
[1730732177975,5.01188045,2449.8,2449.7,0.2319331]
[1730732178278,5.35426972,2449.8,2449.7,0.2319331]
[1730732178617,0.84866007,2449.8,2449.7,0.23196549]
[1730732178786,4.93062007,2449.8,2449.7,3.5e-06]
[1730732179030,4.93065091,2449.8,2449.7,3.5e-06]
[1730732179232,4.93065091,2449.8,2449.7,0.23196494]
[1730732179446,5.01211351,2449.8,2449.7,0.23196494]
[1730732179769,5.01227756,2449.8,2449.7,3.5e-06]
[1730732180065,5.01230135,2449.8,2449.7,0.23196947]
[1730732180272,5.43573232,2449.8,2449.7,3.5e-06]
[1730732180563,4.1634226,2449.8,2449.7,0.23198023]
[1730732180743,5.43573232,2449.8,2449.7,0.23198023]
[1730732180941,5.43573232,2449.8,2449.7,3.5e-06]
[1730732181467,5.49688582,2449.8,2449.7,3.5e-06]
[1730732181672,6.04688582,2449.8,2449.7,3.5e-06]
[1730732181968,7.32087374,2449.8,2449.7,3.5e-06]
[1730732182342,5.98741052,2449.8,2449.7,3.5e-06]
[1730732182550,5.98741052,2449.8,2449.7,0.23134671]
[1730732183286,5.98741052,2449.8,2449.7,3.5e-06]
[1730732183647,5.98741052,2449.8,2449.7,0.23138023]
[1730732184150,5.35594792,2449.8,2449.7,0.23138023]
[1730732184479,4.1634226,2449.8,2449.7,0.23140592]
[1730732184665,7.10897285,2449.8,2449.7,0.23140592]
[1730732184873,7.10897285,2449.8,2449.7,3.5e-06]
[1730732185057,7.10897285,2449.8,2449.7,0.23140178]
[1730732185253,7.10897285,2449.8,2449.7,3.5e-06]
[1730732185788,5.83498493,2449.8,2449.7,3.5e-06]
[1730732185987,7.95825448,2449.8,2449.7,3.5e-06]
[1730732186146,7.95772617,2449.8,2449.7,3.5e-06]
[1730732186783,7.53306031,2449.8,2449.7,3.5e-06]
[1730732186991,7.53310487,2449.8,2449.7,3.5e-06]
[1730732187280,7.95772617,2449.8,2449.7,3.5e-06]
[1730732188145,7.5329074,2449.8,2449.7,3.5e-06]
[1730732188386,4.1634226,2449.8,2449.7,3.5e-06]
[1730732188688,5.43685133,2449.8,2449.7,3.5e-06]
[1730732189244,5.43685133,2449.8,2449.7,0.23140553]
[1730732189446,5.43685133,2449.8,2449.7,0.23140881]
[1730732189447,5.4369629,2449.8,2449.7,0.23140881]
[1730732189668,5.4369629,2449.8,2449.7,3.5e-06]
[1730732189669,5.86134507,2449.8,2449.7,3.5e-06]
[1730732190448,5.77988247,2449.8,2449.7,3.5e-06]
[1730732190762,5.43678991,2449.8,2449.7,0.23142643]
[1730732191178,5.35532731,2449.8,2449.7,0.23142643]
[1730732191366,5.35532731,2449.8,2449.7,3.5e-06]
[1730732191579,4.93100445,2449.8,2449.7,1.04305959]
[1730732191782,5.35532731,2449.8,2449.7,1.04305959]
[1730732192090,0.84900829,2449.9,2449.7,1.04305959]
[1730732192306,1.27336731,2450.0,2449.8,0.23145609]
[1730732192307,0.84900829,2450.0,2449.8,0.23145609]
[1730732192602,0.84900829,2450.1,2449.9,0.60173611]
[1730732192909,5.35457731,2450.3,2450.0,1.41333611]
[1730732192910,4.93030829,2450.2,2450.0,1.41333611]
[1730732193066,0.84900829,2450.2,2450.0,1.04303581]
[1730732193253,0.84900829,2450.2,2450.1,0.23143581]
[1730732193455,0.84900829,2450.3,2450.1,0.60176713]
[1730732193701,4.93013829,2450.3,2450.2,0.23143581]
[1730732194040,4.93033534,2450.3,2450.2,0.23143581]
[1730732194288,4.93033534,2450.3,2450.2,0.60185849]
[1730732194492,4.93033534,2450.3,2449.7,0.38579582]
[1730732194493,3.76975158,2450.3,2449.7,0.8116035]
[1730732194697,4.08196,2449.8,2449.7,0.8116035]
[1730732194853,5.5250226,2449.8,2449.7,0.23152064]
[1730732195054,7.9715426,2449.8,2449.7,0.23152405]
[1730732195297,8.39589244,2449.8,2449.7,3.5e-06]
[1730732195453,8.31442984,2449.8,2449.7,0.23164368]
[1730732195659,8.31442984,2449.8,2449.7,3.5e-06]
[1730732195882,8.31470414,2449.8,2449.7,3.5e-06]
[1730732196207,8.73897312,2449.8,2449.7,3.5e-06]
[1730732196357,6.61650737,2449.8,2449.7,3.5e-06]
[1730732196553,6.69796997,2449.8,2449.7,3.5e-06]
[1730732196902,8.39603558,2449.8,2449.7,3.5e-06]
[1730732197097,8.73897312,2449.8,2449.7,3.5e-06]
[1730732197698,8.31446434,2449.8,2449.7,3.5e-06]
[1730732198109,8.31469795,2449.8,2449.7,3.5e-06]
[1730732198318,12.63411733,2449.8,2449.7,3.5e-06]
[1730732198472,10.51165158,2449.8,2449.7,3.5e-06]
[1730732199085,15.63391191,2449.8,2449.7,3.5e-06]
[1730732199301,13.51165158,2449.8,2449.7,3.5e-06]
[1730732199513,16.05806292,2449.8,2449.7,3.5e-06]
[1730732199668,13.51165158,2449.8,2449.7,3.5e-06]
[1730732199871,16.05809895,2449.8,2449.7,3.5e-06]
[1730732200113,16.05820768,2449.8,2449.7,3.5e-06]
[1730732200308,13.52915158,2449.8,2449.7,3.5e-06]
[1730732200520,13.52915158,2449.8,2448.5,0.87228904]
[1730732200521,4.91256,2448.9,2448.8,0.37058372]
[1730732200815,8.47306,2448.6,2448.5,3.5e-06]
[1730732201134,8.47306,2448.6,2447.8,0.23166862]
[1730732201135,4.08513,2447.9,2447.8,0.23166862]
[1730732203914,4.08496,2448.0,2447.9,0.7716]
[1730732204115,0.0814626,2448.0,2447.7,0.23041338]
[1730732204415,0.0814626,2448.0,2447.6,0.23041338]
[1730732204619,4.08513,2447.9,2447.6,0.23041338]
[1730732204787,0.0814626,2448.0,2447.6,0.23041338]
[1730732204788,4.08546,2447.7,2447.6,0.23041338]
[1730732205127,4.08563,2447.6,2447.5,0.7554]
[1730732205640,1.65332381,2448.3,2447.5,0.7554]
[1730732205641,4.63446,2448.3,2447.5,0.7554]
[1730732205928,4.08536,2447.8,2447.5,0.7554]
[1730732206100,4.84774,2448.6,2447.5,0.7554]
[1730732206299,4.08431,2448.4,2447.9,4.09502]
[1730732206489,4.08439,2448.4,2447.9,0.01]
[1730732206813,4.08439,2448.4,2447.9,4.09501]
[1730732206987,4.08415,2448.5,2448.0,4.08494]
[1730732207387,8.16814,2448.6,2448.1,4.08479]
[1730732207587,4.08322,2449.1,2448.0,4.08494]
[1730732207588,4.08433,2448.4,2448.0,0.8223]
[1730732207825,8.16838,2448.5,2448.0,0.8223]
[1730732208117,0.84692381,2449.1,2448.1,4.1663524]
[1730732208118,4.084,2448.6,2448.1,4.1663524]
[1730732208495,4.08415,2448.5,2448.0,7.90723]
[1730732208947,4.08432,2448.4,2448.0,0.8223]
[1730732209250,4.08454,2448.3,2448.0,1.0521583]
[1730732209387,8.16853,2448.5,2448.0,0.8223]
[1730732209593,4.08439,2448.4,2448.1,0.08168769]
[1730732209923,4.08379,2448.7,2448.0,0.8223]
[1730732210101,4.08445,2448.4,2448.0,0.8223]
[1730732210309,8.1689,2448.4,2448.0,0.8223]
[1730732210504,4.08445,2448.4,2448.1,0.08168705]
[1730732210830,4.08408,2448.6,2448.1,0.08168705]
[1730732210831,4.08414,2448.5,2448.1,0.08168705]
[1730732211028,4.08375,2448.8,2448.1,0.01]
[1730732211335,4.08396,2448.6,2448.1,4.0948]
[1730732211491,4.08415,2448.5,2448.0,8.99205]
[1730732211697,4.08389,2448.7,2448.2,4.08463]
[1730732211896,4.08389,2448.7,2448.1,0.01]
[1730732211897,0.0814626,2448.7,2448.0,0.8223]
[1730732212119,4.08421,2448.5,2448.1,0.08167751]
[1730732212303,4.08421,2448.5,2448.1,0.31146997]
[1730732212512,4.08388,2448.7,2448.1,0.22979246]
[1730732212774,4.08323,2449.1,2448.4,4.08427]
[1730732212910,4.08296,2449.2,2448.6,0.7867]
[1730732213239,4.08369,2448.8,2448.6,0.7867]
[1730732213446,4.08379,2448.7,2448.6,0.7867]
[1730732213798,4.08396,2448.6,2448.3,1.00755436]
[1730732214012,4.08429,2448.4,2448.3,0.7778]
[1730732214233,4.08446,2448.3,2448.2,0.22975436]
[1730732214398,4.02009,2448.4,2448.1,0.22975436]
[1730732214604,4.08452,2448.3,2448.0,0.7778]
[1730732214895,4.08452,2448.3,2448.0,1.00764768]
[1730732215101,4.08452,2448.3,2448.0,0.7778]
[1730732215307,4.08452,2448.3,2448.0,0.85948834]
[1730732215493,4.08452,2448.3,2448.0,1.08933602]
[1730732215695,4.08464,2448.2,2448.0,0.7778]
[1730732215895,4.08441,2448.4,2448.0,0.85949024]
[1730732216141,4.08453,2448.3,2448.0,1.00764768]
[1730732216310,4.08453,2448.3,2448.0,0.7778]
[1730732216311,4.08473,2448.2,2448.0,0.7778]
[1730732216539,4.08453,2448.3,2448.0,0.7778]
[1730732216746,4.08453,2448.3,2448.0,1.00764768]
[1730732216921,4.08453,2448.3,2448.0,0.7778]
[1730732217432,4.08425,2448.5,2448.0,4.94442836]
[1730732217646,4.08445,2448.4,2448.0,0.85948836]
[1730732217835,8.1689,2448.4,2448.0,1.0893599]
[1730732218036,4.08457,2448.3,2448.0,1.00767607]
[1730732218247,4.08457,2448.3,2448.0,0.7778]
[1730732218543,4.08464,2448.2,2448.0,1.00767607]
[1730732218728,4.08446,2448.3,2448.0,0.7778]
[1730732218907,4.08464,2448.2,2448.0,1.00768428]
[1730732219110,8.16939,2448.2,2448.0,0.7778]
[1730732219416,4.0848,2448.1,2448.0,0.7778]
[1730732219610,4.08464,2448.2,2448.0,0.7778]
[1730732219857,8.16942,2448.2,2448.0,1.00772318]
[1730732220142,4.08464,2448.2,2448.0,0.7778]
[1730732220361,4.08464,2448.2,2448.0,1.00772318]
[1730732220510,0.0814626,2448.5,2448.0,0.7778]
[1730732220711,0.0814626,2448.5,2448.0,0.22993347]
[1730732220712,4.0848,2448.1,2448.0,0.22993347]